bitfinex-derivatives/quotes_BTCF0:USTF0_20250402
["timestamp","ask_amount","ask_price","bid_price","bid_amount"]
[1743619829108,0.33227284,86602.0,86601.0,0.0475]
[1743619829322,0.33227284,86602.0,86601.0,0.04818]
[1743619829920,0.34370522,86602.0,86601.0,0.04818]
[1743619830819,0.34370522,86602.0,86601.0,0.1636497]
[1743619831829,0.33227284,86602.0,86601.0,0.1636497]
[1743619832520,0.33227284,86602.0,86601.0,0.2107497]
[1743619833526,0.12530444,86602.0,86601.0,0.2107497]
[1743619833718,0.01142975,86608.0,86607.0,0.1154617]
[1743619833918,0.00017315,86611.0,86610.0,0.1154577]
[1743619834119,0.00017315,86611.0,86610.0,0.1160577]
[1743619834825,0.00017315,86611.0,86610.0,0.2105577]
[1743619836422,0.11562955,86611.0,86610.0,0.2105577]
[1743619836619,0.11650956,86611.0,86610.0,0.0951]
[1743619836817,0.1154711,86600.0,86599.0,0.0004619]
[1743619837023,0.11655111,86600.0,86599.0,0.0982619]
[1743619837219,0.00108001,86600.0,86599.0,0.2137343]
[1743619837419,0.250912,86608.0,86607.0,0.1154617]
[1743619837622,0.11562955,86611.0,86610.0,0.1154577]
[1743619837928,0.00125316,86611.0,86610.0,0.13112476]
[1743619838121,0.00125316,86611.0,86610.0,0.18142476]
[1743619839037,0.11670956,86611.0,86610.0,0.18142476]
[1743619840432,0.11670956,86611.0,86610.0,0.22982476]
[1743619842734,0.11670956,86611.0,86610.0,0.24514176]
[1743619843632,0.00125316,86611.0,86610.0,0.22982476]
[1743619843839,0.00017315,86611.0,86610.0,0.24515452]
[1743619846231,0.00017315,86611.0,86610.0,0.2452279]
[1743619847540,0.11562955,86611.0,86610.0,0.1297702]
[1743619847728,0.11562955,86611.0,86610.0,0.2452279]
[1743619847929,0.11670956,86611.0,86610.0,0.2452279]
[1743619851131,0.16360956,86611.0,86610.0,0.2452279]
[1743619851331,0.16360956,86611.0,86610.0,0.24526549]
[1743619851941,0.21270956,86611.0,86610.0,0.24526549]
[1743619852442,0.21270956,86611.0,86610.0,0.08140779]
[1743619852829,0.21270956,86611.0,86610.0,0.08080779]
[1743619853039,0.21270956,86611.0,86610.0,0.03050779]
[1743619853343,0.1154631,86606.0,86605.0,0.1154633]
[1743619853537,0.11658311,86606.0,86605.0,0.13143652]
[1743619853739,0.20918311,86606.0,86605.0,0.13143652]
[1743619854342,0.20918311,86606.0,86605.0,0.19219416]
[1743619855037,0.25608311,86606.0,86605.0,0.19219416]
[1743619856644,0.25608311,86606.0,86605.0,0.01575764]
[1743619857147,0.25608311,86606.0,86605.0,0.01515764]
[1743619858057,0.63487447,86606.0,86605.0,0.00432789]
[1743619858743,0.1154764,86596.0,86594.0,0.20641564]
[1743619858943,0.7951564,86596.0,86594.0,0.20641564]
[1743619859142,0.92241114,86596.0,86594.0,0.20641564]
[1743619859340,1.01721114,86596.0,86594.0,0.20641564]
[1743619860045,1.01721114,86596.0,86583.0,0.00046198]
[1743619860244,0.1154924,86584.0,86583.0,0.00046198]
[1743619860447,0.74737241,86584.0,86583.0,0.00060008]
[1743619860752,0.94865532,86584.0,86583.0,8e-08]
[1743619861855,0.95999683,86584.0,86583.0,8e-08]
[1743619863148,0.96872997,86584.0,86583.0,8e-08]
[1743619863858,1.01402997,86584.0,86583.0,8e-08]
[1743619864944,1.16402997,86584.0,86583.0,8e-08]
[1743619865247,1.06162997,86584.0,86583.0,8e-08]
[1743619872946,0.1155031,86576.0,86575.0,3e-08]
[1743619873160,0.76750311,86576.0,86575.0,3e-08]
[1743619873346,0.89043424,86576.0,86575.0,3e-08]
[1743619873549,0.93833424,86576.0,86575.0,3e-08]
[1743619873750,0.98893424,86576.0,86575.0,3e-08]
[1743619873950,0.1155138,86568.0,86567.0,1e-07]
[1743619874147,0.80511381,86568.0,86567.0,1e-07]
[1743619874362,1.23445334,86568.0,86567.0,1e-07]
[1743619874554,1.08445334,86568.0,86567.0,1e-07]
[1743619874963,1.27625334,86568.0,86567.0,1e-07]
[1743619877462,0.1155244,86560.0,86559.0,5e-08]
[1743619877659,0.74740441,86560.0,86559.0,5e-08]
[1743619877866,0.1155565,86536.0,86535.0,0.00046224]
[1743619878050,0.82515651,86536.0,86535.0,0.00154224]
[1743619878250,0.9529724,86536.0,86535.0,0.00046224]
[1743619878652,1.06148175,86536.0,86535.0,0.00046224]
[1743619878858,1.07014265,86536.0,86535.0,0.00046224]
[1743619880869,1.07014265,86536.0,86535.0,4e-08]
[1743619885674,0.97334265,86536.0,86535.0,4e-08]
[1743619886467,1.02454265,86536.0,86535.0,4e-08]
[1743619888374,0.97334265,86536.0,86535.0,4e-08]
[1743619888877,0.97338265,86536.0,86535.0,4e-08]
[1743619898383,1.07528265,86536.0,86535.0,4e-08]
[1743619899081,1.02238265,86536.0,86535.0,4e-08]
[1743619899280,0.97338265,86536.0,86535.0,4e-08]
[1743619899783,0.97338265,86536.0,86535.0,0.01505924]
[1743619899986,1.16518265,86536.0,86535.0,0.01505924]
[1743619900684,1.21498265,86536.0,86535.0,0.01505924]
[1743619901885,1.26428265,86536.0,86535.0,0.01505924]
[1743619902083,0.65225026,86536.0,86535.0,0.13061704]
[1743619902284,0.36188001,86536.0,86535.0,0.14602613]
[1743619902477,0.13771497,86542.0,86535.0,0.60304683]
[1743619902673,0.13855497,86542.0,86541.0,0.1155498]
[1743619902878,0.25410347,86542.0,86541.0,0.13163889]
[1743619903084,0.25410347,86542.0,86541.0,0.01608909]
[1743619903384,0.25410347,86542.0,86541.0,0.03114829]
[1743619904082,0.25410347,86542.0,86541.0,0.03127967]
[1743619904686,0.1163885,86542.0,86541.0,0.03127967]
[1743619905378,0.1163885,86542.0,86541.0,0.19892947]
[1743619905785,0.00084,86542.0,86541.0,0.19892947]
[1743619906082,0.1468748,86557.0,86553.0,0.0577662]
[1743619906281,0.12747971,86557.0,86556.0,0.1155298]
[1743619906489,0.11612951,86557.0,86556.0,0.13175027]
[1743619906681,0.0528,86570.0,86556.0,0.13175027]
[1743619906682,0.20677803,86571.0,86556.0,0.52702047]
[1743619906881,0.0577563,86569.0,86568.0,0.1155111]
[1743619907077,0.0577563,86569.0,86568.0,0.13189157]
[1743619907275,0.0585963,86569.0,86568.0,0.01638047]
[1743619907480,0.06988702,86569.0,86568.0,0.12218047]
[1743619907676,0.0585963,86569.0,86568.0,0.1216992]
[1743619908189,0.0585963,86569.0,86568.0,0.13713985]
[1743619908482,0.0585963,86569.0,86568.0,0.1216992]
[1743619908684,0.0585963,86569.0,86568.0,0.1208592]
[1743619908878,0.0585963,86569.0,86568.0,0.237213]
[1743619909078,0.1163524,86569.0,86568.0,0.25262158]
[1743619909488,0.1163524,86569.0,86568.0,0.237213]
[1743619909680,0.1163524,86569.0,86568.0,0.1216992]
[1743619910279,0.1163524,86569.0,86568.0,0.237213]
[1743619910474,0.1163524,86569.0,86568.0,0.1216992]
[1743619911879,0.1163524,86569.0,86568.0,0.237213]
[1743619912788,0.1155124,86569.0,86568.0,0.237213]
[1743619912983,0.00088001,86569.0,86568.0,0.237213]
[1743619913187,0.01193927,86572.0,86571.0,0.1155098]
[1743619913383,0.00109325,86572.0,86571.0,0.4772298]
[1743619913590,0.11660165,86572.0,86571.0,0.4772298]
[1743619914187,0.47740165,86572.0,86571.0,0.00092]
[1743619914391,0.1155124,86569.0,86568.0,0.1058]
[1743619914693,0.1163524,86569.0,86568.0,0.10664]
[1743619915079,0.1163524,86569.0,86568.0,0.12168011]
[1743619916380,0.1163524,86569.0,86568.0,0.59799391]
[1743619916585,0.1163524,86569.0,86568.0,0.48248011]
[1743619918190,0.1163524,86569.0,86568.0,0.46744]
[1743619919686,0.1163524,86569.0,86568.0,0.5829538]
[1743619920091,0.1163524,86569.0,86568.0,0.46744]
[1743619920287,0.1677524,86569.0,86568.0,0.10664]
[1743619921592,0.1155298,86556.0,86553.0,0.00173316]
[1743619921884,0.1163698,86556.0,86555.0,0.00105325]
[1743619922093,0.1163698,86556.0,86555.0,0.05291325]
[1743619922292,0.1714698,86556.0,86555.0,0.05291325]
[1743619922491,0.1714698,86556.0,86555.0,0.10401325]
[1743619924297,0.2230698,86556.0,86555.0,0.00101325]
[1743619926790,0.2230698,86556.0,86555.0,0.01604537]
[1743619929194,0.61426269,86556.0,86555.0,5e-08]
[1743619929387,0.1155565,86536.0,86530.0,0.3608]
[1743619929583,0.11615651,86536.0,86535.0,0.13143919]
[1743619929802,0.16665651,86536.0,86535.0,0.13143919]
[1743619929986,0.16665651,86536.0,86535.0,0.24063912]
[1743619930187,0.16665651,86536.0,86535.0,0.2557786]
[1743619932287,0.05110001,86536.0,86535.0,0.2557786]
[1743619932488,0.01169251,86551.0,86543.0,0.1155471]
[1743619932690,0.01169251,86551.0,86543.0,0.61830786]
[1743619932892,0.0521,86550.0,86543.0,0.61830786]
[1743619933092,0.11571905,86544.0,86543.0,0.61830786]
[1743619933292,0.11647905,86544.0,86543.0,0.61830786]
[1743619933794,0.47727905,86544.0,86543.0,0.03161349]
[1743619933996,0.47727905,86544.0,86543.0,0.01513948]
[1743619933997,0.52787905,86544.0,86543.0,0.01513948]
[1743619934293,0.59977905,86544.0,86543.0,0.01513948]
[1743619934494,0.36490318,86544.0,86543.0,0.01513948]
[1743619935499,0.72570318,86544.0,86543.0,0.01513948]
[1743619936197,0.93570318,86544.0,86543.0,0.01513948]
[1743619937095,0.97570318,86544.0,86543.0,0.01513948]
[1743619937290,0.70570318,86544.0,86543.0,0.01513948]
[1743619942101,0.95570318,86544.0,86543.0,0.01513948]
[1743619942296,0.70570318,86544.0,86543.0,0.01513948]
[1743619943298,0.17875738,86544.0,86543.0,0.01513948]
[1743619943607,0.21887355,86549.0,86548.0,0.1155405]
[1743619943808,0.21947356,86549.0,86548.0,0.14732693]
[1743619944003,0.21947356,86549.0,86548.0,0.13668643]
[1743619944201,0.21947356,86549.0,86525.0,0.20641564]
[1743619944202,0.1155565,86536.0,86525.0,0.26420104]
[1743619944397,0.4770365,86536.0,86535.0,0.01554655]
[1743619944599,0.6370365,86536.0,86535.0,0.00108004]
[1743619944800,0.6370365,86536.0,86535.0,4e-08]
[1743619945003,0.6370365,86536.0,86535.0,0.00100004]
[1743619945406,0.6370365,86536.0,86535.0,4e-08]
[1743619946009,0.6370365,86536.0,86535.0,0.00104004]
[1743619946597,0.6370365,86536.0,86535.0,0.01659968]
[1743619946799,0.2762365,86536.0,86535.0,0.01659968]
[1743619947501,0.2217365,86536.0,86535.0,0.01659968]
[1743619947701,0.1162365,86536.0,86535.0,0.13215748]
[1743619947905,0.00068,86536.0,86535.0,0.13215748]
[1743619948111,0.00068,86536.0,86535.0,0.23845748]
[1743619948296,0.1155565,86536.0,86535.0,0.23845748]
[1743619948502,0.10333445,86542.0,86541.0,0.1155498]
[1743619948702,0.10393446,86542.0,86541.0,0.49322944]
[1743619948997,0.05794675,86544.0,86543.0,0.1155471]
[1743619949197,0.05794675,86544.0,86543.0,0.23806674]
[1743619949609,0.0577685,86551.0,86548.0,0.0577695]
[1743619949798,0.1155378,86550.0,86549.0,0.12095964]
[1743619950009,0.1155378,86550.0,86549.0,0.28967744]
[1743619950809,0.1091673,86553.0,86552.0,0.1155351]
[1743619951109,0.1091673,86553.0,86552.0,0.13244248]
[1743619951314,0.1091673,86553.0,86552.0,0.23714248]
[1743619952309,0.1091673,86553.0,86552.0,0.12160738]
[1743619953416,0.1644673,86553.0,86552.0,0.12160738]
[1743619954516,0.1644673,86553.0,86552.0,0.23714248]
[1743619956113,0.1644673,86553.0,86552.0,0.12160738]
[1743619956314,0.1644673,86553.0,86552.0,0.01690738]
[1743619957618,0.1644673,86553.0,86552.0,0.03200118]
[1743619958613,0.1644673,86553.0,86552.0,0.03208646]
[1743619959621,0.0514,86553.0,86552.0,0.14762156]
[1743619960028,0.1669338,86553.0,86552.0,0.26092156]
[1743619962626,0.1669338,86553.0,86552.0,0.26093773]
[1743619964315,0.1669338,86553.0,86552.0,0.14536166]
[1743619964722,0.2233338,86553.0,86552.0,0.26089676]
[1743619968032,0.2233338,86553.0,86552.0,0.03206166]
[1743619968337,0.2333338,86553.0,86552.0,0.0165738]
[1743619968935,0.2333338,86553.0,86552.0,0.03220302]
[1743619969640,0.2333338,86553.0,86552.0,0.0165738]
[1743619970134,0.35616778,86553.0,86552.0,0.0165738]
[1743619970720,0.70696778,86553.0,86552.0,0.0165738]
[1743619972134,0.70696778,86553.0,86552.0,0.1306289]
[1743619972430,0.5841338,86553.0,86552.0,0.0308828]
[1743619972632,0.2233338,86553.0,86552.0,0.0308828]
[1743619972823,0.2233338,86553.0,86552.0,0.0323628]
[1743619973333,0.2233338,86553.0,86552.0,0.03248516]
[1743619973731,0.2233338,86553.0,86552.0,0.03100516]
[1743619973935,0.2233338,86553.0,86552.0,0.03244738]
[1743619974130,0.2233338,86553.0,86552.0,0.03096738]
[1743619980335,0.3526839,86553.0,86552.0,0.03096738]
[1743619981241,0.3526839,86553.0,86552.0,0.03083372]
[1743619983646,0.6426839,86553.0,86552.0,0.03083372]
[1743619984644,0.3526839,86553.0,86552.0,0.03083372]
[1743619985734,0.6226839,86553.0,86552.0,0.03083372]
[1743619987833,0.1155498,86541.0,86540.0,0.27482893]
[1743619988035,0.8340298,86541.0,86540.0,0.27630893]
[1743619988347,0.8504302,86541.0,86540.0,0.27630893]
[1743619988548,0.7199298,86541.0,86540.0,0.27630893]
[1743619988748,0.6649298,86541.0,86540.0,0.00148]
[1743619989050,0.1155538,86538.0,86537.0,0.39038373]
[1743619989339,0.1155538,86538.0,86537.0,0.32850893]
[1743619989544,0.1721538,86538.0,86537.0,0.32850893]
[1743619990438,0.1721538,86538.0,86537.0,0.44406403]
[1743619990439,0.0566,86538.0,86537.0,0.44406403]
[1743619990639,0.1155532,86541.0,86540.0,0.1733218]
[1743619990840,0.1155532,86541.0,86540.0,0.1748818]
[1743619991238,0.1683532,86541.0,86540.0,0.1748818]
[1743619991848,0.1155532,86541.0,86540.0,0.1748818]
[1743619993436,0.1155532,86541.0,86540.0,0.0593348]
[1743619993740,0.1683532,86541.0,86540.0,0.0593348]
[1743619994243,0.1683532,86541.0,86540.0,0.1145348]
[1743619996936,0.1683532,86541.0,86540.0,0.00156]
[1743619997140,0.58977857,86541.0,86540.0,0.00156]
[1743619997437,0.1155565,86536.0,86535.0,4e-08]
[1743619997642,0.8239965,86536.0,86535.0,0.00148004]
[1743619997843,1.10990681,86536.0,86535.0,4e-08]
[1743620002249,1.03226681,86536.0,86535.0,4e-08]
[1743620002455,0.0561957,86541.0,86539.0,0.0577762]
[1743620002648,0.1717455,86541.0,86540.0,0.2245511]
[1743620002848,0.1717455,86541.0,86540.0,0.2260311]
[1743620003051,0.1717455,86541.0,86540.0,0.24150507]
[1743620003251,0.2244455,86541.0,86540.0,0.24150507]
[1743620003756,0.1682498,86541.0,86540.0,0.18800507]
[1743620003957,0.1682498,86541.0,86540.0,0.18778733]
[1743620004456,0.26454953,86547.0,86544.0,0.1155458]
[1743620004658,0.26454953,86547.0,86546.0,0.1155431]
[1743620004957,0.00865038,86563.0,86556.0,0.1155298]
[1743620005158,0.35629551,86559.0,86557.0,0.18630705]
[1743620005346,0.24076941,86559.0,86557.0,0.18778705]
[1743620005748,0.11570035,86558.0,86557.0,0.18778705]
[1743620006260,0.0577605,86563.0,86557.0,0.18778705]
[1743620006261,0.0577525,86575.0,86564.0,0.1155191]
[1743620006557,0.173268,86573.0,86572.0,0.1155071]
[1743620006851,0.173268,86573.0,86572.0,0.19001865]
[1743620007055,0.173268,86573.0,86572.0,0.07451155]
[1743620007645,0.173268,86573.0,86572.0,0.07457568]
[1743620007843,0.173268,86573.0,86572.0,0.0592329]
[1743620008561,0.173268,86573.0,86572.0,0.07451749]
[1743620009251,0.173268,86573.0,86572.0,0.12611749]
[1743620011356,0.173268,86573.0,86572.0,0.01676459]
[1743620011557,0.41260269,86573.0,86572.0,0.00148]
[1743620011869,0.41260269,86573.0,86572.0,0.1169884]
[1743620014357,0.0535,86574.0,86573.0,0.1155071]
[1743620014547,0.0535,86574.0,86573.0,0.2264871]
[1743620016056,0.1690058,86574.0,86573.0,0.2264871]
[1743620023473,0.1690058,86574.0,86573.0,0.11098]
[1743620023660,0.2202058,86574.0,86573.0,0.11098]
[1743620023861,0.2202058,86574.0,86573.0,0.05748]
[1743620025773,0.2202058,86574.0,86573.0,0.11268]
[1743620025971,0.2722058,86574.0,86573.0,0.11268]
[1743620027164,0.0577436,86588.0,86573.0,0.11268]
[1743620027361,0.0577522,86575.0,86573.0,0.11268]
[1743620027575,0.2760058,86574.0,86573.0,0.11268]
[1743620027776,0.2760058,86574.0,86573.0,0.2281871]
[1743620027969,0.2760058,86574.0,86573.0,0.11268]
[1743620028274,0.2760058,86574.0,86573.0,0.2281871]
[1743620028466,0.2760058,86574.0,86573.0,0.1277291]
[1743620029267,0.2760058,86574.0,86573.0,0.0165291]
[1743620030374,0.2760058,86574.0,86573.0,0.03224834]
[1743620031377,0.2760058,86574.0,86573.0,0.03223045]
[1743620031582,0.2760058,86574.0,86573.0,0.0165291]
[1743620032380,0.2760058,86574.0,86573.0,0.03222976]
[1743620033882,0.2860058,86574.0,86573.0,0.03222976]
[1743620034484,0.2860058,86574.0,86573.0,0.05741468]
[1743620035884,0.2860058,86574.0,86573.0,0.17292178]
[1743620037484,0.2860058,86574.0,86573.0,0.05741468]
[1743620037885,0.2760058,86574.0,86573.0,0.05741468]
[1743620040573,0.4100756,86574.0,86573.0,0.03222976]
[1743620041287,0.4100756,86574.0,86573.0,0.05777219]
[1743620042773,0.4100756,86574.0,86573.0,0.03222976]
[1743620043187,0.4100756,86574.0,86573.0,0.05775704]
[1743620043581,0.4100756,86574.0,86573.0,0.05627704]
[1743620044379,0.4100756,86574.0,86573.0,0.03096833]
[1743620045090,0.4100756,86574.0,86573.0,0.05644789]
[1743620045289,0.4100756,86574.0,86573.0,0.03096833]
[1743620046989,0.4100756,86574.0,86573.0,0.05648005]
[1743620047286,0.4100756,86574.0,86573.0,0.03096833]
[1743620049885,0.4200756,86574.0,86573.0,0.03096833]
[1743620050392,0.4100756,86574.0,86573.0,0.03096833]
[1743620051190,0.4100756,86574.0,86573.0,0.03101707]
[1743620052388,0.4200756,86574.0,86573.0,0.03101707]
[1743620053885,0.4100756,86574.0,86573.0,0.03101707]
[1743620054398,0.4100756,86574.0,86573.0,0.03249707]
[1743620054597,0.4100756,86574.0,86573.0,0.05657195]
[1743620054894,0.4100756,86574.0,86573.0,0.03249707]
[1743620055095,0.4100756,86574.0,86573.0,0.03101707]
[1743620055598,0.4100756,86574.0,86573.0,0.03249707]
[1743620056098,0.4100756,86574.0,86573.0,0.03101707]
[1743620056690,0.4100756,86574.0,86573.0,0.03249707]
[1743620056998,0.4100756,86574.0,86573.0,0.03101707]
[1743620057796,0.4100756,86574.0,86573.0,0.03249707]
[1743620058491,0.6700756,86574.0,86573.0,0.03249707]
[1743620058700,0.6700756,86574.0,86573.0,0.03101707]
[1743620058894,0.6700756,86574.0,86573.0,0.0150491]
[1743620063302,0.6700756,86574.0,86573.0,0.03117649]
[1743620063498,0.3552756,86574.0,86573.0,0.03117649]
[1743620063998,0.3552756,86574.0,86573.0,0.05697889]
[1743620064205,0.3552756,86574.0,86573.0,0.05690742]
[1743620064400,0.3552756,86574.0,86573.0,0.03117649]
[1743620064703,0.4070756,86574.0,86573.0,0.03117649]
[1743620065101,0.3552756,86574.0,86573.0,0.05842973]
[1743620065502,0.49379213,86574.0,86573.0,0.05842973]
[1743620066099,0.49379213,86574.0,86573.0,0.16142973]
[1743620066699,0.49379213,86574.0,86573.0,0.27693683]
[1743620067006,0.49379213,86574.0,86573.0,0.16142973]
[1743620068212,0.54759213,86574.0,86573.0,0.16142973]
[1743620069116,0.54759213,86574.0,86573.0,0.13569649]
[1743620069416,0.4090756,86574.0,86573.0,0.13569649]
[1743620069915,0.4090756,86574.0,86573.0,0.03269649]
[1743620070112,0.4090756,86574.0,86573.0,0.03117649]
[1743620070621,0.4090756,86574.0,86573.0,0.03273649]
[1743620073320,0.4090756,86574.0,86573.0,0.03117649]
[1743620075423,0.3552756,86574.0,86573.0,0.14668359]
[1743620075624,0.3552756,86574.0,86573.0,0.03117649]
[1743620075821,0.3552756,86574.0,86573.0,0.03265649]
[1743620076122,0.3552756,86574.0,86573.0,0.03108226]
[1743620076319,0.3552756,86574.0,86573.0,0.03260226]
[1743620076823,0.3552756,86574.0,86573.0,0.05820665]
[1743620077225,0.1866698,86574.0,86573.0,0.05820665]
[1743620077424,0.13851653,86576.0,86575.0,0.1155044]
[1743620077621,0.13851653,86576.0,86575.0,0.15862195]
[1743620077815,0.13851653,86576.0,86575.0,0.26142195]
[1743620078124,0.13851653,86576.0,86575.0,0.27647105]
[1743620080121,0.11567115,86581.0,86580.0,0.1154978]
[1743620080422,0.11567115,86581.0,86580.0,0.15861535]
[1743620080621,0.00017325,86581.0,86580.0,0.27766445]
[1743620081719,0.10389544,86587.0,86586.0,0.1154898]
[1743620082024,0.10389544,86587.0,86586.0,0.51940735]
[1743620082025,0.21938384,86587.0,86586.0,0.51940735]
[1743620082222,0.21938384,86587.0,86586.0,0.53445645]
[1743620082412,0.10389544,86587.0,86586.0,0.63565645]
[1743620082611,0.10389544,86587.0,86586.0,0.64420068]
[1743620083622,0.1154848,86590.0,86589.0,0.1154857]
[1743620083821,0.1657848,86590.0,86589.0,0.13302168]
[1743620084022,0.1657848,86590.0,86589.0,0.24927078]
[1743620085423,0.2172848,86590.0,86589.0,0.24933319]
[1743620087423,0.2172848,86590.0,86589.0,0.03262839]
[1743620087629,0.2703848,86590.0,86589.0,0.0165291]
[1743620090938,0.48110515,86590.0,86589.0,0.0165291]
[1743620091135,0.84190515,86590.0,86589.0,0.0150491]
[1743620091325,0.84190515,86590.0,86574.0,0.0535]
[1743620091326,0.1154951,86582.0,86573.0,0.0509]
[1743620091526,0.4862951,86582.0,86581.0,0.2779218]
[1743620091730,0.71251545,86582.0,86581.0,0.00148]
[1743620091929,0.1155058,86574.0,86573.0,0.0509]
[1743620092240,0.1155058,86574.0,86573.0,0.06866273]
[1743620092428,0.2734058,86574.0,86573.0,0.21027647]
[1743620092932,0.2734058,86574.0,86573.0,0.09476937]
[1743620093131,0.2734058,86574.0,86573.0,0.04386937]
[1743620093331,0.2734058,86574.0,86573.0,0.01776273]
[1743620093735,0.39555121,86574.0,86573.0,0.01776273]
[1743620094137,0.39555121,86574.0,86573.0,0.03075673]
[1743620095043,0.39555121,86574.0,86573.0,0.03088553]
[1743620096840,0.39555121,86574.0,86573.0,0.03090621]
[1743620097341,0.39555121,86574.0,86573.0,0.02938621]
[1743620097929,0.39555121,86574.0,86573.0,0.03086621]
[1743620098632,0.39555121,86574.0,86573.0,0.03086764]
[1743620099342,0.39555121,86574.0,86573.0,0.02938764]
[1743620099343,0.76635121,86574.0,86573.0,0.02938764]
[1743620100539,0.76635121,86574.0,86573.0,0.01299669]
[1743620100745,0.76635121,86574.0,86568.0,0.00017325]
[1743620100746,0.1155124,86569.0,86568.0,0.00017325]
[1743620100948,0.3955124,86569.0,86568.0,0.00017325]
[1743620101134,0.62969885,86569.0,86568.0,0.00017325]
[1743620102350,0.0577622,86560.0,86554.0,0.19516866]
[1743620102644,0.1155391,86549.0,86548.0,0.41286961]
[1743620102851,0.4630191,86549.0,86548.0,0.41434961]
[1743620103044,0.1155551,86537.0,86512.0,0.07748]
[1743620103342,0.11659511,86537.0,86536.0,0.48449994]
[1743620103549,0.25061728,86537.0,86536.0,0.48449994]
[1743620103745,0.26210756,86537.0,86536.0,0.48449994]
[1743620103941,0.26210756,86537.0,86536.0,0.49970772]
[1743620104143,0.26210756,86537.0,86536.0,0.01632778]
[1743620104448,0.27093235,86537.0,86536.0,0.01520778]
[1743620104648,0.54093235,86537.0,86536.0,0.01520778]
[1743620105043,0.27093235,86537.0,86536.0,0.01520778]
[1743620105440,0.59963235,86537.0,86536.0,0.01520778]
[1743620105638,0.39711235,86537.0,86536.0,0.01520778]
[1743620105837,0.63711235,86537.0,86536.0,0.01520778]
[1743620106246,0.69051235,86537.0,86536.0,0.01520778]
[1743620106841,0.43902207,86537.0,86536.0,0.01520778]
[1743620107737,0.69902207,86537.0,86536.0,0.01520778]
[1743620107941,0.43902207,86537.0,86536.0,0.01520778]
[1743620108248,0.66902207,86537.0,86536.0,0.01520778]
[1743620108442,0.43902207,86537.0,86536.0,0.01520778]
[1743620108844,0.49002207,86537.0,86536.0,0.01520778]
[1743620109044,0.76002207,86537.0,86536.0,0.01520778]
[1743620109242,0.75002207,86537.0,86536.0,0.01520778]
[1743620109654,0.49002207,86537.0,86536.0,0.01520778]
[1743620109861,0.1155565,86536.0,86531.0,0.0505]
[1743620110153,0.3461965,86536.0,86529.0,0.0494]
[1743620110348,0.1155779,86520.0,86512.0,0.1155873]
[1743620110545,0.1155779,86520.0,86515.0,0.1155845]
[1743620110743,0.1155779,86520.0,86516.0,0.0495]
[1743620111043,0.11617791,86520.0,86519.0,0.01666229]
[1743620111244,0.21637791,86520.0,86519.0,0.01666229]
[1743620111448,0.21637791,86520.0,86519.0,0.06616229]
[1743620111755,0.21637791,86520.0,86519.0,0.11786229]
[1743620112752,0.21637791,86520.0,86519.0,0.01666229]
[1743620112956,0.70595258,86520.0,86519.0,0.01562229]
[1743620113151,0.70595258,86520.0,86519.0,0.00150232]
[1743620113353,0.70595258,86520.0,86519.0,0.00046232]
[1743620116453,0.95595258,86520.0,86519.0,0.00046232]
[1743620117255,0.0577955,86511.0,86508.0,0.0494]
[1743620117551,0.1155925,86509.0,86508.0,0.05044]
[1743620117758,0.1162325,86509.0,86508.0,0.05044]
[1743620117962,0.1155966,86506.0,86505.0,0.0501]
[1743620118149,0.12760006,86506.0,86505.0,0.0995]
[1743620118356,0.35977029,86506.0,86505.0,0.0995]
[1743620118756,0.35977029,86506.0,86505.0,0.00104]
[1743620119059,0.1155979,86505.0,86504.0,0.053]
[1743620119255,0.11619791,86505.0,86504.0,0.10558]
[1743620119456,0.34945209,86505.0,86504.0,0.1045]
[1743620120562,0.1155992,86504.0,86503.0,0.00046241]
[1743620120855,0.1167592,86504.0,86503.0,0.00162241]
[1743620121060,0.34938822,86504.0,86503.0,0.00162241]
[1743620121756,0.42686822,86504.0,86503.0,0.00162241]
[1743620122257,0.42686822,86504.0,86503.0,0.01669863]
[1743620124262,0.37546822,86504.0,86503.0,0.01669863]
[1743620125059,0.13228902,86504.0,86503.0,0.13229923]
[1743620125260,0.057786,86525.0,86513.0,0.1155872]
[1743620125451,0.11575925,86514.0,86513.0,0.4777872]
[1743620125759,0.11715926,86514.0,86513.0,0.6313872]
[1743620126154,0.11715926,86514.0,86513.0,0.64646342]
[1743620128865,0.00157336,86514.0,86513.0,0.66176366]
[1743620129065,0.0528,86525.0,86524.0,0.1155725]
[1743620129360,0.1683712,86525.0,86524.0,0.14775713]
[1743620129564,0.1683712,86525.0,86524.0,0.30575713]
[1743620129768,0.1683712,86525.0,86524.0,0.29044872]
[1743620129961,0.1683712,86525.0,86524.0,0.17487622]
[1743620130162,0.53635246,86525.0,86524.0,0.12187622]
[1743620130464,0.34725246,86525.0,86524.0,0.06937622]
[1743620131469,0.58725246,86525.0,86524.0,0.06937622]
[1743620131657,0.34725246,86525.0,86524.0,0.06937622]
[1743620132461,0.34725246,86525.0,86524.0,0.01687622]
[1743620134363,0.1683712,86525.0,86524.0,0.14787774]
[1743620134557,0.1683712,86525.0,86524.0,0.03230524]
[1743620134756,0.1683712,86525.0,86524.0,0.14787774]
[1743620135066,0.01133075,86530.0,86529.0,0.1155658]
[1743620135263,0.1155645,86530.0,86529.0,0.29343482]
[1743620135464,0.2436922,86530.0,86529.0,0.29343482]
[1743620135664,0.2436922,86530.0,86529.0,0.03234524]
[1743620135863,0.6000922,86530.0,86529.0,0.01507622]
[1743620136355,0.6508922,86530.0,86529.0,0.01507622]
[1743620136753,0.6308922,86530.0,86529.0,0.01507622]
[1743620137859,0.64260264,86530.0,86529.0,0.01507622]
[1743620139764,0.64260264,86530.0,86529.0,2e-08]
[1743620139971,0.1155819,86517.0,86516.0,0.06347912]
[1743620140157,1.1646619,86517.0,86516.0,0.06347912]
[1743620140362,1.44290375,86517.0,86516.0,0.06347912]
[1743620141160,1.44290375,86517.0,86501.0,0.107]
[1743620141161,0.1155925,86509.0,86508.0,0.00017335]
[1743620141360,0.4763925,86509.0,86508.0,0.00017335]
[1743620141559,0.71121082,86509.0,86508.0,0.00017335]
[1743620142671,0.96121082,86509.0,86508.0,0.00017335]
[1743620146565,1.03869082,86509.0,86508.0,0.00017335]
[1743620148683,0.78869082,86509.0,86508.0,0.00017335]
[1743620151768,1.04869082,86509.0,86508.0,0.00017335]
[1743620152183,1.04869082,86509.0,86508.0,0.01560748]
[1743620153377,1.02869082,86509.0,86508.0,0.01560748]
[1743620153776,0.95121082,86509.0,86508.0,0.01560748]
[1743620154079,0.78869082,86509.0,86508.0,0.01560748]
[1743620154374,0.73689082,86509.0,86508.0,0.01560748]
[1743620154781,0.73689082,86509.0,86508.0,0.01740748]
[1743620154979,0.73689082,86509.0,86508.0,0.01560748]
[1743620155474,0.79039082,86509.0,86508.0,0.01560748]
[1743620159785,0.73689082,86509.0,86508.0,0.01560748]
[1743620160284,0.65941082,86509.0,86508.0,0.01560748]
[1743620165075,0.71201082,86509.0,86508.0,0.01560748]
[1743620165682,0.95201082,86509.0,86508.0,0.01560748]
[1743620166081,0.95201082,86509.0,86508.0,8e-08]
[1743620166288,0.1155992,86504.0,86500.0,0.1]
[1743620166583,0.1156032,86501.0,86500.0,1e-08]